fUST/lending_fUST_20240113
["ID","MTS","AMOUNT","RATE_DAILY","PERIOD"]
[311440007,1705108241736,-500.0,0.00022191,2]
[311440008,1705108241748,-500.0,0.00022191,2]
[311440009,1705108241758,-500.0,0.00022191,2]
[311440010,1705108241769,-496.32997356,0.00022191,2]
[311440011,1705108241780,-500.0,0.00022191,2]
[311440012,1705108241790,-500.0,0.00022191,2]
[311440013,1705108241803,-500.0,0.00022191,2]
[311440014,1705108241816,-500.0,0.00022191,2]
[311440015,1705108241827,-500.0,0.00022191,2]
[311440016,1705108241838,-500.0,0.00022191,2]
[311440017,1705108241851,-500.0,0.00022191,2]
[311440018,1705108241862,-500.0,0.00022191,2]
[311440019,1705108241873,-500.0,0.00022191,2]
[311440020,1705108241884,-500.0,0.00022191,2]
[311440021,1705108241894,-500.0,0.00022191,2]
[311440022,1705108241905,-415.02043692,0.00022191,2]
[311440023,1705108241916,-500.0,0.00022191,2]
[311440024,1705108241927,-500.0,0.00022191,2]
[311440025,1705108241938,-500.0,0.00022191,2]
[311440026,1705108241949,-166.666666,0.00022431,2]
[311440027,1705108241960,-500.0,0.00022465,2]
[311440028,1705108241971,-540.95,0.00022465,2]
[311440029,1705108241982,-591.89,0.00022465,2]
[311440030,1705108241992,-500.0,0.00022465,2]
[311440031,1705108242003,-500.0,0.00022465,2]
[311440032,1705108242015,-219.41306917,0.00022465,2]
[311440033,1705108242027,-500.0,0.00022465,2]
[311440034,1705108242038,-500.0,0.00022465,2]
[311440035,1705108242050,-500.0,0.00022465,2]
[311440036,1705108242061,-193.37388031,0.00022465,2]
[311440037,1705108242072,-500.0,0.00022465,2]
[311440038,1705108242081,-500.0,0.00022465,2]
[311440039,1705108242091,-500.0,0.00022465,2]
[311440040,1705108242101,-500.0,0.00022465,2]
[311440041,1705108242111,-500.0,0.00022465,2]
[311440042,1705108242120,-310.33962096,0.00022465,2]
[311440043,1705108242130,-344.65784846,0.00022465,2]
[311440044,1705108242140,-500.0,0.00022465,2]
[311440045,1705108242151,-500.0,0.00022465,2]
[311440046,1705108242162,-500.0,0.00022465,2]
[311440047,1705108242173,-500.0,0.00022465,2]
[311440048,1705108242186,-500.0,0.00022465,2]
[311440049,1705108242196,-1528.44,0.00022465,2]
[311440050,1705108242205,-605.6,0.00022465,2]
[311440051,1705108242216,-500.0,0.00022465,2]
[311440052,1705108242227,-500.0,0.00022465,2]
[311440053,1705108242238,-500.0,0.00022465,2]
[311440054,1705108242247,-500.0,0.00022465,2]
[311440055,1705108242257,-500.0,0.00022465,2]
[311440056,1705108242268,-184.13370995,0.00022465,2]
[311440057,1705108242278,-500.0,0.00022465,2]
[311440058,1705108242289,-500.0,0.00022465,2]
[311440059,1705108242299,-367.80560993,0.0002254,2]
[311440060,1705108242309,-500.0,0.00022739,2]
[311440061,1705108242319,-591.89,0.00022739,2]
[311440062,1705108242330,-530.9088348,0.00022739,2]
[311440063,1705108242340,-500.0,0.00022739,2]
[311440064,1705108242349,-256.03265185,0.00022739,2]
[311440065,1705108242360,-500.0,0.00022739,2]
[311440066,1705108242371,-503.34416239,0.00022739,2]
[311440067,1705108242381,-521.91,0.00022739,2]
[311440068,1705108242391,-456.71551593,0.00022739,2]
[311440069,1705108242402,-500.0,0.00022739,2]
[311440070,1705108242413,-500.0,0.00022739,2]
[311440071,1705108242424,-1528.44,0.00022739,2]
[311440072,1705108242434,-500.0,0.00022739,2]
[311440073,1705108242445,-500.0,0.00022739,2]
[311440074,1705108242455,-500.0,0.00022739,2]
[311440075,1705108242466,-500.0,0.00022739,2]
[311440076,1705108242477,-500.0,0.00022739,2]
[311440077,1705108242487,-262.58,0.00022739,2]
[311440078,1705108242497,-500.0,0.00022739,2]
[311440079,1705108242508,-166.666666,0.00022944,2]
[311440080,1705108242520,-500.0,0.00023013,2]
[311440081,1705108242530,-591.89,0.00023013,2]
[311440082,1705108242540,-500.0,0.00023013,2]
[311440083,1705108242551,-500.0,0.00023013,2]
[311440084,1705108242562,-500.0,0.00023013,2]
[311440085,1705108242572,-500.0,0.00023013,2]
[311440086,1705108242582,-1528.44,0.00023013,2]
[311440087,1705108242593,-500.0,0.00023013,2]
[311440088,1705108242603,-450.0,0.00023013,2]
[311440089,1705108242614,-500.0,0.00023013,2]
[311440090,1705108242624,-500.0,0.00023013,2]
[311440091,1705108242754,-507.86,0.00023287,2]
[311440092,1705108242767,-591.89,0.00023287,2]
[311440093,1705108242777,-375.86,0.00023287,2]
[311440094,1705108242787,-413.4,0.00023287,2]
[311440095,1705108242796,-500.0,0.00023287,2]
[311440096,1705108242805,-1528.44,0.00023287,2]
[311440097,1705108242814,-500.0,0.00023287,2]
[311440098,1705108242823,-500.0,0.00023287,2]
[311440099,1705108242832,-154.7,0.00023287,2]
[311440100,1705108242842,-166.666666,0.00023456,2]
[311440101,1705108242851,-591.89,0.00023561,2]
[311440102,1705108242860,-500.0,0.00023561,2]
[311440103,1705108242869,-1528.44,0.00023561,2]
[311440104,1705108242878,-500.0,0.00023561,2]
[311440105,1705108242887,-500.0,0.00023561,2]
[311440106,1705108242896,-591.89,0.00023835,2]
[311440107,1705108242906,-500.0,0.00023835,2]
[311440108,1705108242915,-1528.44,0.00023835,2]
[311440109,1705108242924,-500.0,0.00023835,2]
[311440110,1705108242934,-500.0,0.00023835,2]
[311440111,1705108242943,-166.666666,0.00023969,2]
[311440112,1705108242953,-591.89,0.00024109,2]
[311440113,1705108242962,-278.86557767,0.00024109,2]
[311440114,1705108242971,-1528.44,0.00024109,2]
[311440115,1705108242980,-500.0,0.00024109,2]
[311440116,1705108242989,-591.89,0.00024383,2]
[311440117,1705108242998,-1528.44,0.00024383,2]
[311440118,1705108243008,-500.0,0.00024383,2]
[311440119,1705108243019,-166.666666,0.00024482,2]
[311440120,1705108243028,-591.89,0.00024657,2]
[311440121,1705108243037,-1528.44,0.00024657,2]
[311440122,1705108243046,-500.0,0.00024657,2]
[311440123,1705108243056,-591.89,0.00024931,2]
[311440124,1705108243064,-1528.44,0.00024931,2]
[311440125,1705108243074,-500.0,0.00024931,2]
[311440126,1705108243083,-223.89868289,0.00025,2]
[311440127,1705108243092,-150.0,0.00025,2]
[311440128,1705108243101,-591.89,0.00025205,2]
[311440129,1705108243110,-1528.44,0.00025205,2]
[311440131,1705108243120,-500.0,0.00025205,2]
[311440132,1705108243129,-591.89,0.00025479,2]
[311440133,1705108243137,-1528.44,0.00025479,2]
[311440134,1705108243146,-500.0,0.00025479,2]
[311440135,1705108243155,-367.80560993,0.0002552,2]
[311440136,1705108243166,-343.29234358,0.00025563,2]
[311440138,1705108243175,-500.0,0.00025563,2]
[311440141,1705108243186,-500.0,0.00025563,2]
[311440142,1705108243195,-571.23633064,0.00025563,2]
[311440143,1705108243204,-200.0,0.00025563,2]
[311440144,1705108243215,-500.0,0.00025563,2]
[311440145,1705108243224,-500.0,0.00025563,2]
[311440146,1705108243233,-500.0,0.00025563,2]
[311440148,1705108243242,-500.0,0.00025563,2]
[311440150,1705108243252,-626.60587398,0.00025563,2]
[311440151,1705108243262,-591.89,0.00025753,2]
[311440152,1705108243273,-1528.44,0.00025753,2]
[311440153,1705108243282,-500.0,0.00025753,2]
[311440154,1705108243291,-500.0,0.00025837,2]
[311440155,1705108243299,-591.89,0.00026027,2]
[311440156,1705108243308,-1528.44,0.00026027,2]
[311440157,1705108243318,-500.0,0.00026027,2]
[311440158,1705108243327,-309.87604958,0.000263,2]
[311440159,1705108243336,-4505.0327371,0.00026301,2]
[311440160,1705108243345,-591.89,0.00026301,2]
[311440161,1705108243355,-1528.44,0.00026301,2]
[311440162,1705108243364,-500.0,0.00026301,2]
[311440163,1705108243373,-620.07302205,0.000264,2]
[311440164,1705108243382,-591.89,0.00026575,2]
[311440165,1705108243392,-1528.44,0.00026575,2]
[311440166,1705108243401,-500.0,0.00026575,2]
[311440167,1705108243409,-591.89,0.00026849,2]
[311440168,1705108243418,-1528.44,0.00026849,2]
[311440169,1705108243428,-500.0,0.00026849,2]
[311440170,1705108243437,-168.34470832,0.00026996,2]
[311440171,1705108243447,-460.75992736,0.00027,2]
[311440172,1705108243456,-591.89,0.00027123,2]
[311440173,1705108243465,-1528.44,0.00027123,2]
[311440174,1705108243475,-500.0,0.00027123,2]
[311440175,1705108243484,-153.3605723,0.00027281,2]
[311440176,1705108243493,-252.40159392,0.00027297,2]
[311440177,1705108243502,-2943.29386013,0.00027297,2]
[311440178,1705108243512,-2780.02941384,0.000273,4]
[311440179,1705108243522,-591.89,0.00027397,2]
[311440180,1705108243532,-1528.44,0.00027397,2]
[311440181,1705108243541,-500.0,0.00027397,2]
[311440182,1705108243550,-4919.92729241,0.000274,2]
[311440183,1705108243559,-155.57280123,0.00027508,2]
[311440184,1705108243568,-153.3605723,0.00027573,2]
[311440185,1705108243577,-160.73375477,0.00027646,2]
[311440186,1705108243587,-200.0,0.00027646,2]
[311440187,1705108243596,-485.43117551,0.00027646,2]
[311440188,1705108243605,-155.0310062,0.00027646,2]
[311440189,1705108243615,-155.0294556,0.00027646,2]
[311440190,1705108243624,-591.89,0.00027671,2]
[311440191,1705108243633,-1528.44,0.00027671,2]
[311440192,1705108243642,-500.0,0.00027671,2]
[311440193,1705108243651,-620.0036511,0.0002772,2]
[311440194,1705108243660,-497.24154266,0.00027762,5]
[311440195,1705108243669,-22394.13752086,0.00027894,2]
[311440196,1705108243679,-1277.53173752,0.00027894,2]
[311440197,1705108243688,-1850.63538551,0.00027894,2]
[311440198,1705108243698,-591.89,0.00027945,2]
[311440199,1705108243707,-1528.44,0.00027945,2]
[311440200,1705108243717,-500.0,0.00027945,2]
[311440201,1705108243726,-592.07,0.00028219,2]
[311440202,1705108243735,-1528.6248906,0.00028219,2]
[311440203,1705108243744,-321.02748687,0.00028219,2]
[311440204,1705108243754,-367.80560993,0.000285,2]
[311440205,1705108243763,-276000.0,0.00028538,2]
[311440206,1705108243776,-153.3605723,0.00028569,2]
[311440207,1705108243785,-300.0,0.000286,14]
[311440208,1705108243795,-3478.12894861,0.00028638,2]
[311440209,1705108243805,-2918.14311302,0.00028733,2]
[311440210,1705108243814,-269.0,0.0002893,2]
[311440211,1705108243823,-185.7733706,0.00029,2]
[311440212,1705108243832,-155.0,0.00029,2]
[311440213,1705108243842,-620.00018256,0.00029106,2]
[311440214,1705108243851,-500.0,0.00029221,2]
[311440215,1705108243861,-500.0,0.00029221,2]
[311440216,1705108243871,-415.35550888,0.00029221,2]
[311440217,1705108243880,-500.0,0.00029221,2]
[311440218,1705108243889,-632.87353794,0.00029221,2]
[311440219,1705108243898,-501.9129392,0.00029221,2]
[311440220,1705108243907,-500.0,0.00029221,2]
[311440221,1705108243917,-500.0,0.00029221,2]
[311440222,1705108243926,-500.0,0.00029221,2]
[311440223,1705108243935,-223.6586896,0.00029221,2]
[311440224,1705108243944,-500.0,0.00029221,2]
[311440225,1705108243953,-500.0,0.00029221,2]
[311440226,1705108243962,-500.0,0.00029221,2]
[311440227,1705108243972,-500.0,0.00029221,2]
[311440228,1705108243981,-500.0,0.00029221,2]
[311440229,1705108243990,-500.0,0.00029221,2]
[311440230,1705108243999,-500.0,0.00029221,2]
[311440231,1705108244010,-500.0,0.00029221,2]
[311440232,1705108244020,-500.0,0.00029221,2]
[311440233,1705108244030,-500.0,0.00029221,2]
[311440234,1705108244041,-500.0,0.00029221,2]
[311440235,1705108244050,-500.0,0.00029221,2]
[311440236,1705108244059,-542.23044222,0.00029221,2]
[311440237,1705108244068,-481.89311034,0.00029221,2]
[311440238,1705108244077,-500.0,0.00029221,2]
[311440239,1705108244086,-500.0,0.00029221,2]
[311440240,1705108244095,-500.0,0.00029221,2]
[311440241,1705108244104,-500.0,0.00029221,2]
[311440242,1705108244113,-500.0,0.00029221,2]
[311440243,1705108244122,-500.0,0.00029221,2]
[311440244,1705108244132,-500.0,0.00029221,2]
[311440246,1705108244140,-500.0,0.00029221,2]
[311440248,1705108244149,-500.0,0.00029221,2]
[311440249,1705108244158,-500.0,0.00029221,2]
[311440251,1705108244168,-500.0,0.00029221,2]
[311440252,1705108244181,-500.0,0.00029221,2]
[311440253,1705108244190,-500.0,0.00029221,2]
[311440255,1705108244199,-500.0,0.00029221,2]
[311440257,1705108244208,-500.0,0.00029221,2]
[311440258,1705108244217,-500.0,0.00029221,2]
[311440260,1705108244226,-500.0,0.00029221,2]
[311440262,1705108244235,-500.0,0.00029221,2]
[311440263,1705108244244,-500.0,0.00029221,2]
[311440264,1705108244254,-500.0,0.00029221,2]
[311440265,1705108244263,-354.69234584,0.00029221,2]
[311440266,1705108244275,-500.0,0.00029221,2]
[311440267,1705108244284,-500.0,0.00029221,2]
[311440268,1705108244293,-500.0,0.00029221,2]
[311440269,1705108244302,-500.0,0.00029221,2]
[311440270,1705108244311,-500.0,0.00029221,2]
[311440271,1705108244320,-500.0,0.00029221,2]
[311440272,1705108244329,-500.0,0.00029221,2]
[311440273,1705108244338,-500.0,0.00029221,2]
[311440274,1705108244347,-500.0,0.00029221,2]
[311440275,1705108244356,-500.0,0.00029221,2]
[311440276,1705108244366,-500.0,0.00029221,2]
[311440277,1705108244375,-500.0,0.00029221,2]
[311440278,1705108244384,-500.0,0.00029221,2]
[311440279,1705108244393,-500.0,0.00029221,2]
[311440280,1705108244402,-500.0,0.00029221,2]
[311440281,1705108244413,-164.31941956,0.00029222,2]
[311440282,1705108244422,-1293.98334762,0.00029222,2]
[311440283,1705108244431,-260.38964263,0.00029222,2]
[311440284,1705108244441,-425.12426258,0.00029222,2]
[311440285,1705108244450,-204.50668989,0.00029222,2]
[311440286,1705108244459,-296.16942876,0.00029222,2]
[311440287,1705108244468,-470.84194551,0.00029222,2]
[311440288,1705108244478,-155.99132904,0.00029222,2]
[311440289,1705108244487,-309.87604958,0.00029222,2]
[311440290,1705108244497,-322.57910218,0.00029222,2]
[311440291,1705108244506,-295.44289703,0.00029222,2]
[311440292,1705108244516,-521.43346448,0.00029222,2]
[311440293,1705108244527,-848.51221584,0.00029222,2]
[311440294,1705108244536,-665.55235548,0.00029222,2]
[311440295,1705108244546,-569.57191408,0.00029222,2]
[311440296,1705108244555,-2746.20575269,0.00029222,2]
[311440297,1705108244565,-2293.16748545,0.00029224,2]
[311440298,1705108244574,-687.59711705,0.00029225,2]
[311440299,1705108244585,-1989.51321951,0.00029226,2]
[311440300,1705108244594,-157.02376586,0.00029309,2]
[311440301,1705108244604,-2159.01429321,0.00029309,2]
[311440302,1705108244613,-683.2481648,0.000295,30]
[311440303,1705108244622,-151.0,0.00029527,2]
[311440304,1705108244632,-33739.84985949,0.00029672,2]
[311440305,1705108244641,-507.04658453,0.0002979,3]
[311440306,1705108244651,-191952.67542055,0.0002979,7]
[311440307,1705108244660,-200.0,0.000298,4]
[311440308,1705108244670,-250.0,0.000298,2]
[311440309,1705108244681,-897.60259975,0.00029908,2]
[311440310,1705108244690,-466.82403981,0.00029993,2]
[311440311,1705108244699,-1840.11829615,0.00029993,2]
[311440312,1705108244708,-161.73535013,0.00029993,2]
[311440313,1705108244717,-264.78036786,0.00029994,2]
[311440314,1705108244727,-331.90052711,0.00029994,2]
[311440315,1705108244736,-261.69539729,0.00029994,2]
[311440316,1705108244745,-309.84507746,0.00029994,2]
[311440317,1705108244754,-294.75959814,0.00029994,2]
[311440318,1705108244763,-677.18765749,0.00029994,2]
[311440319,1705108244776,-155.00465014,0.00029995,2]
[311440320,1705108244785,-4711.08145103,0.00029995,2]
[311440321,1705108244795,-677.45880314,0.00029995,2]
[311440322,1705108244804,-9920.80434626,0.00029995,2]
[311440323,1705108244813,-500.0,0.00029999,4]
[311440324,1705108244822,-500.0,0.00029999,4]
[311440325,1705108244831,-500.0,0.00029999,4]
[311440326,1705108244841,-609.89360876,0.00029999,4]
[311440327,1705108244850,-500.0,0.00029999,4]
[311440328,1705108244859,-499.86102531,0.00029999,4]
[311440329,1705108244868,-500.0,0.00029999,4]
[311440330,1705108244877,-290.24137478,0.00029999,4]
[311440331,1705108244886,-500.0,0.00029999,4]
[311440332,1705108244895,-443.30752578,0.00029999,4]
[311440333,1705108244905,-203.5314852,0.00029999,4]
[311440334,1705108244914,-500.0,0.00029999,4]
[311440335,1705108244923,-500.0,0.00029999,4]
[311440336,1705108244932,-500.0,0.00029999,4]
[311440337,1705108244941,-500.0,0.00029999,4]
[311440338,1705108244951,-500.0,0.00029999,4]
[311440339,1705108244961,-500.0,0.00029999,4]
[311440340,1705108244970,-500.0,0.00029999,4]
[311440341,1705108244979,-500.0,0.00029999,4]
[311440342,1705108244989,-500.0,0.00029999,4]
[311440343,1705108244998,-500.0,0.00029999,4]
[311440344,1705108245007,-221.65376288,0.00029999,4]
[311440345,1705108245019,-424.70943436,0.0003,4]
[311440346,1705108245028,-6976.66580817,0.0003,4]
[311440347,1705108245037,-639.95393342,0.0003,4]
[311440348,1705108245046,-10529.66648615,0.0003,4]
[311440349,1705108245055,-2152.16950054,0.0003,4]
[311440350,1705108245064,-686.95328399,0.0003,4]
[311440351,1705108245074,-154.93802479,0.0003,4]
[311440352,1705108245083,-166.49733179,0.0003,2]
[311440353,1705108245092,-373.63869795,0.0003,10]
[311440354,1705108245101,-205674.5772878,0.0003,2]
[311440355,1705108245278,-1110.10265425,0.0003,2]
[311440356,1705108245300,-1784.56547776,0.0003,2]
[311440357,1705108245311,-8566.61346514,0.0003,2]
[311440358,1705108245449,-0.12268812,0.00024298,4]
[311440393,1705108986696,223.89868289,0.00015,2]
[311440399,1705109346103,-154.95351395,0.0001778,2]
[311440400,1705109346123,-2928.16627852,0.0001778,2]
[311440401,1705109346143,-1251.04496716,0.0001778,2]
[311440402,1705109346162,-154.95351395,0.00017781,2]
[311440403,1705109346183,-1990.13068714,0.00017781,2]
[311440404,1705109346202,-1016.53156958,0.00017781,2]
[311440405,1705109349087,-171.27962684,0.00017682,2]
[311440406,1705109349108,-17945.49643767,0.00017781,2]
[311440407,1705109353089,-154.95351395,0.00017779,3]
[311440408,1705109353109,-164.31941956,0.00017779,2]
[311440409,1705109353128,-1877.20909776,0.00017781,2]
[311440410,1705109354088,59.68071952,0.0001778,2]
[311440411,1705109356096,-1180.61356042,0.0001778,2]
[311440412,1705109356117,-7695.02206173,0.0001778,2]
[311440413,1705109359358,-294.57807745,0.0001778,2]
[311440414,1705109359378,-125.32721874,0.00019,2]
[311440468,1705109433924,-46.45131126,0.00019,2]
[311440469,1705109433972,-1407.47734195,0.00019,2]
[311440470,1705109433982,-155.11074723,0.00019,2]
[311440471,1705109433991,-155.07144005,0.00019,2]
[311440472,1705109434000,-154.99732422,0.00019,2]
[311440473,1705109434010,-2660.4902578,0.00019,2]
[311440510,1705109438266,-250.46026953,0.00019,2]
[311440516,1705109438389,-83207.93574315,0.00019,2]
[311440517,1705109438399,-164.049905,0.00019178,2]
[311440518,1705109438410,-326.91284264,0.00021,2]
[311440519,1705109438419,-154.95351395,0.00021493,4]
[311440520,1705109438428,-24900.0,0.00021495,2]
[311440521,1705109438438,-526.29325014,0.00021814,2]
[311440522,1705109438447,-155.15382127,0.00021866,2]
[311440523,1705109438457,-500.0,0.00021917,2]
[311440525,1705109438466,-442.19069985,0.00021917,2]
[311440527,1705109438475,-500.0,0.00021917,2]
[311440529,1705109438484,-500.0,0.00021917,2]
[311440531,1705109438493,-500.0,0.00021917,2]
[311440533,1705109438503,-500.0,0.00021917,2]
[311440535,1705109438512,-500.0,0.00021917,2]
[311440537,1705109438521,-500.0,0.00021917,2]
[311440539,1705109438531,-500.0,0.00021917,2]
[311440541,1705109438540,-167.05203448,0.00021917,2]
[311440543,1705109438549,-181.537887,0.00021918,2]
[311440545,1705109438558,-181.537887,0.00022559,2]
[311440547,1705109438566,-181.537887,0.000232,2]
[311440548,1705109438575,-181.537887,0.00023841,2]
[311440550,1705109438585,-500.0,0.00024172,2]
[311440552,1705109438594,-582.84738924,0.00024192,2]
[311440711,1705109441299,-506.45872342,0.00024172,2]
[311440712,1705109441309,-1407.58034225,0.00024192,2]
[311440713,1705109441318,-193.59355566,0.00024193,2]
[311440714,1705109441327,-151.61750468,0.00024249,2]
[311440715,1705109441337,-5679.25,0.00024286,3]
[311440716,1705109441346,-8178.11,0.00024287,3]
[311440717,1705109441355,-6815.1,0.00024287,3]
[311440718,1705109441365,-154.97688991,0.00024295,2]
[311440719,1705109441374,-2389.02794853,0.00024296,2]
[311440720,1705109441383,-162.75529733,0.00024296,2]
[311440721,1705109441392,-155.05578633,0.00024296,2]
[311440722,1705109441401,-155.06198695,0.00024296,2]
[311440723,1705109441411,-1250.2779328,0.00024296,2]
[311440724,1705109441420,-621.89039832,0.00024296,2]
[311440725,1705109441430,-853.67276286,0.00024296,2]
[311440726,1705109441439,-164.24940589,0.00024296,2]
[311440727,1705109441448,-5239.55219914,0.00024296,2]
[311440728,1705109441457,-9527.35816697,0.00024296,2]
[311440729,1705109441467,-271.96235488,0.00024296,2]
[311440730,1705109441476,-155.26140834,0.00024296,2]
[311440731,1705109441486,-155.08059671,0.00024296,2]
[311440732,1705109441497,-155.17915368,0.00024296,2]
[311440733,1705109441507,-167.26258369,0.00024296,2]
[311440734,1705109441517,-155.10681782,0.00024296,2]
[311440735,1705109441529,-203.29756212,0.00024296,2]
[311440736,1705109441541,-155.09515388,0.00024296,2]
[311440737,1705109441551,-10506.50980465,0.00024297,2]
[311440738,1705109441561,-440.63501099,0.00024297,2]
[311440739,1705109441570,-500.0,0.00024297,2]
[311440740,1705109441580,-60.7198264,0.00024297,2]
[311440741,1705109441592,-289.65969094,0.00024297,2]
[311440742,1705109441602,-334.97,0.00024297,2]
[311440743,1705109441611,-500.0,0.00024297,2]
[311440744,1705109441620,-500.0,0.00024297,2]
[311440745,1705109441630,-174.8658683,0.00024297,2]
[311440746,1705109441639,-178.44106149,0.00024297,2]
[311440747,1705109441649,-2080.28320628,0.00024298,2]
[311440748,1705109441658,-200.0,0.00024298,2]
[311440749,1705109441667,-1822.38176649,0.00024298,2]
[311440750,1705109441675,-300.0,0.00024298,2]
[311440751,1705109441684,-600.38011664,0.00024446,2]
[311440752,1705109441694,-122.91305274,0.00024482,2]
[311440753,1705109441705,-58.62483426,0.00024482,2]
[311440754,1705109441715,-500.0,0.00024571,2]
[311440755,1705109441724,-223.89868289,0.00025,2]
[311440756,1705109441733,-3298.36533975,0.00026998,2]
[311440776,1705109443149,-622.72884227,0.00026998,2]
[311440811,1705109446269,-712.11649033,0.00026998,2]
[311440812,1705109446279,-987.38578467,0.00026998,2]
[311440813,1705109446288,-153.36057233,0.00027199,2]
[311440814,1705109446298,-24.14625267,0.00027881,2]
[311440815,1705110574145,-4790.79275157,0.00021001,2]
[311440816,1705110574167,-154.95351395,0.00021001,4]
[311440817,1705110574186,-326.91284264,0.00021001,2]
[311440818,1705110574206,-154.95351395,0.00021002,2]
[311440819,1705110574225,-1173.1167052,0.00021002,2]
[311440832,1705110632329,-861.1849247,0.00020999,2]
[311440833,1705110632339,-1579.55237576,0.00021,2]
[311440834,1705110632348,-1990.42773149,0.00021003,2]
[311440835,1705110632357,-24900.0,0.00021004,2]
[311440836,1705110632366,-629.3855524,0.00021487,2]
[311440837,1705110632376,-3846.8635775,0.00021487,2]
[311440838,1705110632385,-200.43326334,0.00022,2]
[311440839,1705110632395,-1948.36385867,0.00022197,2]
[311440840,1705110632404,-2204.681511,0.00022229,2]
[311440841,1705110632413,-2204.681511,0.00022229,2]
[311440842,1705110632424,-2204.681511,0.00022229,2]
[311440843,1705110632435,-2204.681511,0.00022229,2]
[311440844,1705110632444,-2204.681511,0.00022229,2]
[311440845,1705110632454,-500.0,0.00024297,2]
[311440846,1705110632464,-223.92375554,0.0002509,2]
[311440847,1705110632473,-154.95351395,0.00025091,4]
[311440848,1705110632483,-300.0,0.00026998,2]
[311440849,1705110632492,-200.0,0.00026998,2]
[311440850,1705110632501,-2088.07045906,0.00026998,2]
[311440851,1705110632511,-1948.36385867,0.00027197,2]
[311440852,1705110632521,-200.06844917,0.00027794,2]
[311440853,1705110632530,-1727.60226457,0.00027871,3]
[311440854,1705110632594,-3079.55773543,0.00027871,3]
[311440855,1705110632604,-3963.99903181,0.00027871,3]
[311440862,1705110638582,-322.58071309,0.00020998,2]
[311440864,1705110638592,-40.60956135,0.00027871,3]
[311440880,1705110641385,-1689.02435156,0.00027871,3]
[311440913,1705110743374,3187.14,0.00029,30]
[311440956,1705111541098,-179.411424,0.00020999,2]
[311440986,1705111832464,-359.72092522,0.00020999,2]
[311441061,1705111839018,-147.70780832,0.00020999,2]
[311441062,1705111839027,-386.29172065,0.00021,2]
[311441063,1705111839062,-7912.20242962,0.00021,2]
[311441064,1705111839072,-326.91284264,0.00021,2]
[311441065,1705111839083,-3941.45443239,0.00022,2]
[311441066,1705111839094,-156.94549562,0.00023026,2]
[311441067,1705111839103,-24900.0,0.00023027,2]
[311441068,1705111839113,-182.554943,0.00023767,2]
[311441069,1705111839122,-164.049905,0.00024574,2]
[311441070,1705111839131,-4091.19989812,0.00025091,2]
[311441071,1705111839140,-649.45461955,0.00025771,2]
[311441072,1705111839150,-155.0,0.00027397,2]
[311441073,1705111839159,-176.15529663,0.00027779,2]
[311441074,1705111839168,-3057.03,0.00027861,3]
[311441075,1705111839178,-2547.52,0.00027861,3]
[311441076,1705111839187,-2122.94,0.00027861,3]
[311441077,1705111839196,-3020.47058663,0.00027869,2]
[311441078,1705111839205,-155.24787659,0.0002787,2]
[311441079,1705111839214,-500.0,0.0002787,2]
[311441080,1705111839223,-500.0,0.0002787,2]
[311441081,1705111839232,-500.0,0.0002787,2]
[311441082,1705111839241,-500.0,0.0002787,2]
[311441083,1705111839250,-500.0,0.0002787,2]
[311441084,1705111839259,-87979.42159798,0.00027871,7]
[311441085,1705111839268,-232.40652231,0.00027879,2]
[311441086,1705111839278,-862.96577839,0.00027879,2]
[311441087,1705111839287,-576.68040665,0.00027879,2]
[311441088,1705111839296,-221.97120976,0.00027879,2]